fUST/lending_fUST_20240922
["ID","MTS","AMOUNT","RATE_DAILY","PERIOD"]
[338879969,1726994813098,-354.85770006,0.0002091,2]
[338879970,1726994813122,-1105.896111,0.00021,2]
[338879971,1726994813146,-3150.0,0.0002101,2]
[338879972,1726994813167,-354.85769991,0.00021246,2]
[338879973,1726994813189,-354.85769991,0.00021582,2]
[338879974,1726994813211,-354.85769991,0.00021918,2]
[338879975,1726994813234,-354.85769991,0.00022255,2]
[338879976,1726994813259,-354.85769991,0.00022591,2]
[338879977,1726994813280,-354.85769991,0.00022927,2]
[338879978,1726994813304,-220.0398161,0.00023033,2]
[338879979,1726994813326,-271.31220323,0.00023263,2]
[338879981,1726994832239,-83.54549668,0.00023263,2]
[338879982,1726994832263,-300.0,0.00023314,2]
[338879983,1726994832287,-250.0,0.00023315,2]
[338879984,1726994832312,-8934.31480597,0.00023315,2]
[338879985,1726994836108,-1274.61305092,0.00023315,2]
[338879986,1726994844093,-1624.9749722,0.00023315,2]
[338879987,1726994845892,500.0,0.00021,30]
[338879988,1726994846226,500.0,0.00021,30]
[338879989,1726994945088,-300.0,0.00023314,2]
[338879990,1726994945110,-13066.09717091,0.00023315,2]
[338879991,1726994945131,-166.666666,0.0002344,2]
[338879992,1726994945151,-354.85769991,0.00023599,2]
[338879993,1726994945175,-150.0,0.0002371,2]
[338879994,1726994945196,-354.85769991,0.00023935,2]
[338879995,1726994945218,-166.666666,0.00024079,2]
[338879996,1726994945239,-354.85769991,0.00024272,2]
[338879997,1726994945260,-354.85769991,0.00024608,2]
[338879998,1726994945280,-200.0,0.00024658,15]
[338879999,1726994945302,-153.89536997,0.00024718,2]
[338880000,1726994950119,-12.77129603,0.00024718,2]
[338880001,1726994950140,-787.12094821,0.00024867,2]
[338880002,1726994950161,-354.85769991,0.00024944,2]
[338880003,1726994950181,-500.0,0.00025,30]
[338880004,1726994950203,-500.0,0.00025,30]
[338880005,1726994950226,-500.0,0.00025,30]
[338880006,1726994950248,-500.0,0.00025,30]
[338880007,1726994950271,-426.89098236,0.00025,30]
[338880008,1726994950298,-188.0,0.00025,2]
[338880009,1726994950320,-160.039485,0.0002513,2]
[338880010,1726994950343,-160.039485,0.00025261,2]
[338880011,1726994950366,-354.85769991,0.0002528,2]
[338880012,1726994950389,-166.666666,0.00025357,2]
[338880013,1726994966869,453.77403868,0.0002523,4]
[338880014,1726994967117,-160.039485,0.00025392,2]
[338880015,1726994967142,-282.378305,0.00025468,2]
[338880016,1726994967166,-455.82886319,0.00025483,4]
[338880017,1726994967188,-160.039485,0.00025523,2]
[338880018,1726994967213,-354.85769991,0.00025616,2]
[338880019,1726994967234,-160.039485,0.00025654,2]
[338880020,1726994967257,-160.039485,0.00025785,2]
[338880021,1726994967278,-188.0,0.0002589,2]
[338880022,1726994967299,-160.039485,0.00025916,2]
[338880023,1726994967321,-354.85769991,0.00025952,2]
[338880024,1726994967341,-166.666666,0.00025996,2]
[338880025,1726994967362,-160.039485,0.00026047,2]
[338880026,1726994967384,-160.039485,0.00026178,2]
[338880027,1726994967405,-354.85769991,0.00026289,2]
[338880028,1726994967425,-660.0,0.00026301,2]
[338880029,1726994967448,-160.039485,0.00026309,2]
[338880030,1726994967472,-160.039485,0.0002644,2]
[338880031,1726994967494,-354.85769991,0.00026625,2]
[338880032,1726994967518,-166.666666,0.00026635,2]
[338880033,1726994967538,-178.11,0.00026841,14]
[338880034,1726994967558,-354.85769991,0.00026961,2]
[338880035,1726995013326,188.0,0.00025,2]
[338880036,1726995017899,234.338689,0.00026272,2]
[338880081,1726995031891,-500.0,0.00026972,2]
[338880082,1726995031901,-28.99714533,0.00027,2]
[338880083,1726995031912,-160.00285467,0.00027,2]
[338880084,1726995031922,-500.0,0.00027397,2]
[338880085,1726995031932,-500.0,0.00027397,2]
[338880086,1726995031941,-102.8968811,0.00027397,2]
[338880116,1726995038268,-397.1031189,0.00027397,2]
[338880117,1726995038277,-500.0,0.00027397,2]
[338880118,1726995038287,-500.0,0.00027397,2]
[338880119,1726995038297,-508.91653452,0.00027397,2]
[338880121,1726995038307,-500.0,0.00027397,2]
[338880122,1726995038316,-500.0,0.00027397,2]
[338880123,1726995038326,-500.0,0.00027397,2]
[338880124,1726995038335,-500.0,0.00027397,2]
[338880125,1726995038345,-500.0,0.00027397,2]
[338880126,1726995038354,-500.0,0.00027397,2]
[338880127,1726995038364,-500.0,0.00027397,2]
[338880128,1726995038375,-500.0,0.00027397,2]
[338880129,1726995038384,-500.0,0.00027397,2]
[338880130,1726995038394,-206.39961748,0.00027397,2]
[338880131,1726995038403,-805.37831284,0.00027877,2]
[338880132,1726995038413,-263.64932145,0.00027879,2]
[338880133,1726995038424,-184.897743,0.00027887,2]
[338880134,1726995038433,-208.36439161,0.00027888,7]
[338880135,1726995038443,-208.86,0.00027888,7]
[338880136,1726995038452,-151.67410299,0.00027888,7]
[338880137,1726995038461,-151.67410299,0.00027888,7]
[338880138,1726995038471,-151.67410299,0.00027888,7]
[338880139,1726995038480,-151.67410299,0.00027888,7]
[338880140,1726995038490,-151.67410299,0.00027888,7]
[338880141,1726995038501,-151.67410299,0.00027888,7]
[338880142,1726995038511,-151.67410299,0.00027888,7]
[338880143,1726995038522,-151.67410299,0.00027888,7]
[338880144,1726995038531,-151.67410299,0.00027888,7]
[338880145,1726995038541,-216.86,0.00027888,7]
[338880146,1726995038550,-173.39038819,0.00027888,7]
[338880147,1726995038560,-173.39038819,0.00027888,7]
[338880148,1726995038569,-173.39038819,0.00027888,7]
[338880149,1726995038579,-173.39038819,0.00027888,7]
[338880150,1726995038588,-1000.0,0.00027898,2]
[338880151,1726995038598,-704.45,0.00027968,3]
[338880152,1726995038608,-498.2417232,0.00027968,3]
[338880153,1726995038621,-823.44768023,0.00027968,3]
[338880154,1726995039112,-2119.03510944,0.00027968,3]
[338880159,1726995039830,-7850.71548713,0.00027968,3]
[338880160,1726995039840,-15518.46,0.00027968,3]
[338880161,1726995039851,-500.0,0.00027973,5]
[338880162,1726995039860,-500.0,0.00027973,5]
[338880163,1726995039870,-150.0,0.00027973,5]
[338880164,1726995039880,-293.51074894,0.00027977,2]
[338880165,1726995039890,-500.0,0.00027977,2]
[338880166,1726995039900,-500.0,0.00027977,2]
[338880167,1726995039910,-500.0,0.00027977,2]
[338880168,1726995039921,-500.0,0.00027977,2]
[338880169,1726995039931,-500.0,0.00027977,2]
[338880170,1726995039941,-500.0,0.00027977,2]
[338880171,1726995039951,-500.0,0.00027977,2]
[338880172,1726995039959,-500.0,0.00027977,2]
[338880173,1726995039969,-500.0,0.00027977,2]
[338880174,1726995039979,-500.0,0.00027977,2]
[338880175,1726995039989,-200.27127624,0.00027977,2]
[338880176,1726995040000,-234.33215382,0.00027977,2]
[338880177,1726995040009,-330.92758925,0.00027977,2]
[338880178,1726995040020,-500.0,0.00027977,2]
[338880179,1726995040030,-500.0,0.00027977,2]
[338880180,1726995040039,-500.0,0.00027977,2]
[338880181,1726995040049,-500.0,0.00027977,2]
[338880182,1726995040059,-311.62845797,0.00027977,2]
[338880183,1726995040068,-500.0,0.00027977,2]
[338880184,1726995040077,-500.0,0.00027977,2]
[338880185,1726995040086,-500.0,0.00027977,2]
[338880186,1726995040095,-500.0,0.00027977,2]
[338880187,1726995040105,-500.0,0.00027977,2]
[338880188,1726995040114,-500.0,0.00027977,2]
[338880189,1726995040124,-500.0,0.00027977,2]
[338880190,1726995040133,-500.0,0.00027977,2]
[338880191,1726995040143,-500.0,0.00027977,2]
[338880192,1726995040152,-500.0,0.00027977,2]
[338880193,1726995040163,-500.0,0.00027977,2]
[338880194,1726995040172,-500.0,0.00027977,2]
[338880195,1726995040181,-500.0,0.00027977,2]
[338880196,1726995040192,-500.0,0.00027977,2]
[338880197,1726995040202,-500.0,0.00027977,2]
[338880198,1726995040211,-500.0,0.00027977,2]
[338880199,1726995040220,-500.0,0.00027977,2]
[338880200,1726995040230,-500.0,0.00027977,2]
[338880201,1726995040239,-500.0,0.00027977,2]
[338880202,1726995040249,-500.0,0.00027977,2]
[338880203,1726995040258,-500.0,0.00027977,2]
[338880204,1726995040267,-500.0,0.00027977,2]
[338880205,1726995040276,-500.0,0.00027977,2]
[338880206,1726995040285,-500.0,0.00027977,2]
[338880207,1726995040295,-500.0,0.00027977,2]
[338880208,1726995040304,-500.0,0.00027977,2]
[338880209,1726995040314,-500.0,0.00027977,2]
[338880210,1726995040323,-500.0,0.00027977,2]
[338880211,1726995040333,-500.0,0.00027977,2]
[338880212,1726995040342,-500.0,0.00027977,2]
[338880213,1726995040351,-500.0,0.00027977,2]
[338880214,1726995040361,-500.0,0.00027977,2]
[338880215,1726995040371,-500.0,0.00027977,2]
[338880216,1726995040381,-500.0,0.00027977,2]
[338880217,1726995040390,-500.0,0.00027977,2]
[338880218,1726995040400,-500.0,0.00027977,2]
[338880219,1726995040412,-500.0,0.00027977,2]
[338880220,1726995040423,-500.0,0.00027977,2]
[338880221,1726995040432,-500.0,0.00027977,2]
[338880222,1726995040445,-500.0,0.00027977,2]
[338880223,1726995040456,-370.4742822,0.00027977,2]
[338880224,1726995040466,-500.0,0.00027977,2]
[338880225,1726995040478,-500.0,0.00027977,2]
[338880226,1726995040488,-500.0,0.00027977,2]
[338880227,1726995040499,-500.0,0.00027977,2]
[338880228,1726995040508,-500.0,0.00027977,2]
[338880229,1726995040519,-500.0,0.00027977,2]
[338880230,1726995040529,-500.0,0.00027977,2]
[338880231,1726995040539,-500.0,0.00027977,2]
[338880232,1726995040549,-500.0,0.00027977,2]
[338880233,1726995040558,-500.0,0.00027977,2]
[338880234,1726995040568,-500.0,0.00027977,2]
[338880235,1726995040578,-500.0,0.00027977,2]
[338880236,1726995040589,-500.0,0.00027977,2]
[338880237,1726995040600,-500.0,0.00027977,2]
[338880238,1726995040609,-500.0,0.00027977,2]
[338880239,1726995040618,-500.0,0.00027977,2]
[338880240,1726995040628,-500.0,0.00027977,2]
[338880241,1726995040638,-553.44277269,0.00027977,2]
[338880242,1726995040647,-500.0,0.00027977,2]
[338880243,1726995040657,-500.0,0.00027977,2]
[338880244,1726995040671,-500.0,0.00027977,2]
[338880245,1726995040680,-242.90331536,0.00027977,2]
[338880246,1726995040689,-500.0,0.00027977,2]
[338880247,1726995040699,-500.0,0.00027977,2]
[338880248,1726995040710,-500.0,0.00027977,2]
[338880249,1726995040719,-500.0,0.00027977,2]
[338880250,1726995040728,-326.0706331,0.00027977,2]
[338880251,1726995040738,-500.0,0.00027977,2]
[338880252,1726995040747,-500.0,0.00027977,2]
[338880253,1726995040757,-151.0,0.00027978,7]
[338880254,1726995040766,-151.0,0.00027978,7]
[338880255,1726995040775,-162.370338,0.00027978,7]
[338880256,1726995040785,-151.0,0.00027978,7]
[338880257,1726995040794,-151.0,0.00027978,7]
[338880258,1726995040803,-151.0,0.00027978,7]
[338880259,1726995040813,-151.0,0.00027978,7]
[338880260,1726995040822,-151.0,0.00027978,7]
[338880261,1726995040831,-151.0,0.00027978,7]
[338880262,1726995040842,-151.0,0.00027978,7]
[338880263,1726995040853,-151.0,0.00027978,7]
[338880264,1726995040863,-151.0,0.00027978,7]
[338880265,1726995040874,-151.0,0.00027978,7]
[338880266,1726995040886,-264.73693,0.00027978,7]
[338880267,1726995040897,-287.287461,0.00027978,7]
[338880268,1726995040908,-149457.33047384,0.00027978,15]
[338880269,1726995040918,-53240.02683641,0.00027978,15]
[338880274,1726995042866,-200.0,0.00027,120]
[338880275,1726995042877,-6657.93708232,0.00027978,15]
[338880276,1726995042889,-492.76092073,0.00027978,15]
[338880277,1726995042977,-297.4458533,0.00027978,15]
[338880278,1726995043131,-803.47244776,0.00027978,15]
[338880289,1726995146322,500.0,0.00025,30]
[338880290,1726995146585,500.0,0.00025,30]
[338880291,1726995146673,989.03192254,0.00021,30]
[338880292,1726995146986,500.0,0.00021,30]
[338880293,1726995150858,563.43941917,0.00021,30]
[338880294,1726995249750,504.62682153,0.00021,6]
[338880295,1726995299824,804.90967314,0.00021,6]
[338880304,1726995940146,-672.52843278,0.00016,2]
[338880306,1726996038092,-177.42884996,0.000159,2]
[338880307,1726996038118,-26.4208682,0.00015999,2]
[338880308,1726996039105,-273.5791318,0.00015999,2]
[338880309,1726996039127,-300.0,0.00015999,2]
[338880310,1726996039150,-327.47156722,0.00016,2]
[338880311,1726996039171,-393.0,0.00016,2]
[338880312,1726996039192,-1000.0,0.00016,2]
[338880313,1726996039212,-1000.0,0.00016,2]
[338880314,1726996039237,-1000.0,0.00016,2]
[338880315,1726996039258,-1000.0,0.00016,2]
[338880316,1726996039280,-1000.0,0.00016,2]
[338880317,1726996039302,-658.79755515,0.00016,2]
[338880318,1726996046122,-341.20244485,0.00016,2]
[338880319,1726996046144,-1000.0,0.00016,2]
[338880320,1726996046165,-89.81480318,0.00016,2]
[338880321,1726996046196,-288.54449317,0.00016,2]
[338880322,1726996134166,700.43899138,0.0001,2]
[338880323,1726996145195,-621.64070365,0.00016,2]
[338880324,1726996145217,-1000.0,0.00016,2]
[338880325,1726996145238,-1000.0,0.00016,2]
[338880326,1726996145259,-1000.0,0.00016,2]
[338880327,1726996145280,-1000.0,0.00016,2]
[338880328,1726996145301,-1000.0,0.00016,2]
[338880329,1726996145322,-1000.0,0.00016,2]
[338880330,1726996145344,-1106.0,0.00016,2]
[338880331,1726996145367,-2500.0,0.00016,2]
[338880332,1726996145388,-151.36378773,0.0002,2]
[338880333,1726996145408,-349.8385552,0.00020338,2]
[338880334,1726996145432,-5551.922523,0.00021,2]
[338880335,1726996145452,-150.0,0.00021621,2]
[338880336,1726996145474,-189.0,0.00022108,2]
[338880337,1726996145501,-184.247716,0.00022807,2]
[338880338,1726996145524,-1148.77527898,0.00023445,2]
[338880339,1726996145547,-166.666666,0.00023491,2]
[338880340,1726996145569,-9616.5257847,0.00023514,2]
[338880341,1726996147252,-15283.4742153,0.00023514,2]
[338880342,1726996147273,-510.2877365,0.00023545,2]
[338880343,1726996147295,-201.479639,0.00023709,2]
[338880344,1726996147317,-166.666666,0.00024131,2]
[338880345,1726996147343,-380.0,0.00024658,2]
[338880346,1726996147366,-200.0,0.00024658,15]
[338880347,1726996147390,-166.666666,0.00024771,2]
[338880348,1726996147554,-250.0,0.00024806,2]
[338880349,1726996147576,-250.0,0.00024874,2]
[338880350,1726996147596,-250.0,0.00024942,2]
[338880351,1726996147620,-500.0,0.00025,30]
[338880352,1726996147643,-500.0,0.00025,30]
[338880353,1726996147668,-500.0,0.00025,30]
[338880354,1726996147688,-230.0,0.00025,2]
[338880355,1726996147710,-250.0,0.0002501,2]
[338880356,1726996147734,-250.0,0.00025078,2]
[338880357,1726996147760,-250.0,0.00025146,2]
[338880358,1726996147782,-250.0,0.00025214,2]
[338880359,1726996147807,-250.0,0.00025282,2]
[338880360,1726996147834,-250.0,0.0002535,2]
[338880361,1726996147859,-166.666666,0.00025412,2]
[338880362,1726996147882,-250.0,0.00025418,2]
[338880363,1726996147903,-1148.77527897,0.00025474,2]
[338880364,1726996147925,-250.0,0.00025486,2]
[338880365,1726996147945,-250.0,0.00025554,2]
[338880366,1726996147966,-575.32670306,0.00025614,2]
[338880367,1726996147986,-250.0,0.00025622,2]
[338880368,1726996148007,-250.0,0.0002569,2]
[338880369,1726996148028,-250.0,0.00025758,2]
[338880370,1726996148049,-250.0,0.00025826,2]
[338880371,1726996148071,-175.160519,0.00025852,2]
[338880372,1726996148096,-175.160519,0.00025871,2]
[338880373,1726996148117,-175.160519,0.00025889,2]
[338880374,1726996148139,-250.0,0.00025894,2]
[338880375,1726996148160,-175.160519,0.00025908,2]
[338880376,1726996148181,-175.160519,0.00025926,2]
[338880377,1726996148203,-175.160519,0.00025945,2]
[338880378,1726996148226,-250.0,0.00025962,2]
[338880379,1726996148248,-175.160519,0.00025963,2]
[338880380,1726996148269,-175.160519,0.00025982,2]
[338880381,1726996148291,-250.0,0.0002603,2]
[338880382,1726996148311,-166.666666,0.00026052,2]
[338880383,1726996148332,-250.0,0.00026098,2]
[338880384,1726996148357,-660.0,0.00026301,2]
[338880385,1726996148379,-166.666666,0.00026693,2]
[338880386,1726996148402,-151.0,0.000267,2]
[338880387,1726996148423,-245.108,0.00026843,14]
[338880388,1726996156396,1689.58087244,0.000141,2]
[338880389,1726996156416,8310.41912756,0.000141,2]
[338880390,1726996197143,211.490666,0.00025989,2]
[338880394,1726996210592,2000.0,0.00025988,2]
[338880433,1726996231972,-1049.17748,0.000267,2]
[338880466,1726996232704,2000.0,0.0002599,2]
[338880477,1726996238128,-950.82252,0.000267,2]
[338880479,1726996238138,-161.67320096,0.000269,2]
[338880480,1726996238148,-412.87343593,0.00026972,2]
[338880482,1726996238160,-87.12656407,0.00026972,2]
[338880484,1726996238170,-161.67320093,0.00026984,2]
[338880486,1726996238179,-211.0,0.00027,2]
[338880488,1726996238189,-161.67320093,0.00027068,2]
[338880489,1726996238198,-161.67320093,0.00027153,2]
[338880490,1726996238207,-161.67320093,0.00027237,2]
[338880491,1726996238217,-161.67320093,0.00027321,2]
[338880492,1726996238226,-161.67320093,0.00027405,2]
[338880493,1726996238236,-161.67320093,0.0002749,2]
[338880494,1726996238245,-1148.77527897,0.00027502,2]
[338880495,1726996238255,-161.67320093,0.00027574,2]
[338880496,1726996238264,-260.0,0.000276,2]
[338880497,1726996238274,-161.67320093,0.00027658,2]
[338880498,1726996238284,-237.28438926,0.00027747,2]
[338880499,1726996238293,-765.93,0.00027748,3]
[338880500,1726996238303,-15203.94,0.00027749,3]
[338880501,1726996238316,-1000.0,0.00027758,2]
[338880502,1726996238328,-4202.86312635,0.00027758,4]
[338880506,1726996240036,-94802.20082275,0.00027758,4]
[338880507,1726996240046,-129731.90277215,0.00027758,4]
[338880508,1726996240058,-8576.92887385,0.00027758,4]
[338880509,1726996240067,-200.27127624,0.00027767,2]
[338880510,1726996240077,-500.0,0.00027767,2]
[338880511,1726996240087,-311.62845797,0.00027767,2]
[338880512,1726996240098,-500.0,0.00027767,2]
[338880513,1726996240107,-330.92758925,0.00027767,2]
[338880514,1726996240116,-500.0,0.00027767,2]
[338880515,1726996240126,-500.0,0.00027767,2]
[338880516,1726996240135,-234.33215382,0.00027767,2]
[338880517,1726996240145,-500.0,0.00027767,2]
[338880518,1726996240154,-500.0,0.00027767,2]
[338880519,1726996240164,-500.0,0.00027767,2]
[338880520,1726996240173,-500.0,0.00027767,2]
[338880521,1726996240182,-500.0,0.00027767,2]
[338880522,1726996240191,-500.0,0.00027767,2]
[338880523,1726996240201,-453.44277269,0.00027767,2]
[338880524,1726996240210,-500.0,0.00027767,2]
[338880525,1726996240219,-500.0,0.00027767,2]
[338880526,1726996240229,-500.0,0.00027767,2]
[338880527,1726996240238,-500.0,0.00027767,2]
[338880528,1726996240248,-500.0,0.00027767,2]
[338880529,1726996240257,-500.0,0.00027767,2]
[338880530,1726996240266,-500.0,0.00027767,2]
[338880531,1726996240275,-500.0,0.00027767,2]
[338880532,1726996240284,-500.0,0.00027767,2]
[338880533,1726996240293,-500.0,0.00027767,2]
[338880534,1726996240302,-500.0,0.00027767,2]
[338880535,1726996240312,-500.0,0.00027767,2]
[338880536,1726996240321,-500.0,0.00027767,2]
[338880537,1726996240331,-500.0,0.00027767,2]
[338880538,1726996240340,-250.0,0.00027767,2]
[338880539,1726996240350,-500.0,0.00027767,2]
[338880540,1726996240359,-500.0,0.00027767,2]
[338880541,1726996240369,-500.0,0.00027767,2]
[338880542,1726996240379,-500.0,0.00027767,2]
[338880543,1726996240388,-500.0,0.00027767,2]
[338880544,1726996240397,-500.0,0.00027767,2]
[338880545,1726996240407,-500.0,0.00027767,2]
[338880546,1726996240416,-500.0,0.00027767,2]
[338880547,1726996240425,-500.0,0.00027767,2]
[338880548,1726996240434,-500.0,0.00027767,2]
[338880549,1726996240443,-500.0,0.00027767,2]
[338880550,1726996240453,-500.0,0.00027767,2]
[338880551,1726996240462,-500.0,0.00027767,2]
[338880552,1726996240471,-293.51074894,0.00027767,2]
[338880553,1726996240481,-500.0,0.00027767,2]
[338880554,1726996240490,-500.0,0.00027767,2]
[338880555,1726996240499,-500.0,0.00027767,2]
[338880556,1726996240508,-500.0,0.00027767,2]
[338880557,1726996240518,-500.0,0.00027767,2]
[338880558,1726996240527,-253.56877699,0.00027767,2]
[338880559,1726996240539,-500.0,0.00027767,2]
[338880560,1726996240549,-500.0,0.00027767,2]
[338880561,1726996240558,-60788.32666116,0.00027768,15]
[338880562,1726996240569,-151.0,0.00027768,7]
[338880563,1726996240578,-162.370338,0.00027768,7]
[338880564,1726996240588,-151.0,0.00027768,7]
[338880565,1726996240597,-151.0,0.00027768,7]
[338880566,1726996240606,-152.007513,0.00027768,7]
[338880567,1726996240616,-5387.326231,0.00027768,7]
[338880568,1726996240625,-5387.326231,0.00027768,7]
[338880569,1726996240634,-5387.326231,0.00027768,7]
[338880570,1726996240643,-5387.326231,0.00027768,7]
[338880571,1726996240653,-151.0,0.00027768,7]
[338880572,1726996240662,-151.0,0.00027768,7]
[338880573,1726996240672,-264.73693,0.00027768,7]
[338880574,1726996240682,-287.287461,0.00027768,7]
[338880575,1726996240691,-155742.84427904,0.00027768,15]
[338880581,1726996246025,-195.473634,0.00026737,2]
[338880582,1726996246035,-114.326366,0.00027434,2]
[338880583,1726996246125,-81.147268,0.00027434,2]
[338880584,1726996246135,-3297.41266432,0.00027758,3]
[338880585,1726996340402,688.81891132,0.00025,30]
[338880586,1726996345400,200.0,0.00025025,2]
[338880587,1726996345532,500.0,0.00025,30]
[338880588,1726996345923,443.99378175,0.00021,30]
[338880614,1726997226133,-300.0,0.00019576,2]
[338880615,1726997226157,-34.61531196,0.00019576,2]
[338880616,1726997239104,-2372.1031078,0.00019459,2]
[338880617,1726997239126,-165.73193966,0.00019476,2]
[338880618,1726997239150,-165.73193964,0.00019545,2]
[338880619,1726997239174,-265.38468804,0.00019576,2]
[338880620,1726997239197,-5826.33315028,0.00019577,2]
[338880621,1726997244132,-1062.4533372,0.00019577,2]
[338880622,1726997254139,-580.05210104,0.00019577,2]
[338880626,1726997345114,-300.0,0.00019576,2]
[338880627,1726997345136,-9870.96636248,0.00019577,2]
[338880628,1726997345158,-165.73193964,0.00019615,2]
[338880629,1726997345179,-165.73193964,0.00019684,2]
[338880630,1726997345204,-275.213347,0.00019734,2]
[338880631,1726997345225,-165.73193964,0.00019753,2]
[338880632,1726997345247,-717.9845494,0.00019792,2]
[338880633,1726997345269,-165.73193964,0.00019822,2]
[338880634,1726997345292,-620.54281024,0.00019824,2]
[338880635,1726997346096,-8728.365296,0.00019824,2]
[338880636,1726997358203,-15551.09189376,0.00019824,2]
[338880637,1726997358225,-165.73193964,0.00019892,2]
[338880638,1726997358247,-165.73193964,0.00019961,2]
[338880639,1726997358268,-165.73193964,0.0002003,2]
[338880640,1726997358292,-168.758325,0.0002013,2]
[338880641,1726997358314,-168.758325,0.0002028,2]
[338880642,1726997358337,-168.758325,0.00020429,2]
[338880643,1726997358359,-168.758325,0.00020579,2]
[338880644,1726997358380,-222.621754,0.00020712,2]
[338880645,1726997358402,-168.758325,0.00020729,2]
[338880646,1726997358425,-168.758325,0.00020879,2]
[338880647,1726997358448,-93.45123994,0.00021,30]
[338880648,1726997358470,-500.0,0.00021,30]
[338880649,1726997358492,-500.0,0.00021,30]
[338880650,1726997358514,-500.0,0.00021,30]
[338880651,1726997358535,-716.83650336,0.00021,30]
[338880652,1726997358556,-3000.0,0.00021,2]
[338880653,1726997358578,-3000.0,0.0002101,2]
[338880654,1726997358601,-3000.0,0.0002102,2]
[338880655,1726997358622,-168.758325,0.00021029,2]
[338880656,1726997358643,-3000.0,0.0002103,2]
[338880657,1726997358664,-5615.161842,0.0002104,2]
[338880658,1726997358685,-253.766483,0.00021056,2]
[338880659,1726997358708,-168.758325,0.00021179,2]
[338880660,1726997358728,-420.0,0.00021534,2]
[338880661,1726997358749,-1591.0624963,0.000218,2]
[338880662,1726997358770,-205.8429667,0.00021918,2]
[338880663,1726997363099,-500.0,0.00022367,2]
[338880664,1726997363121,-717.98454935,0.00022522,2]
[338880665,1726997363142,-302.54622906,0.00024,2]
[338880666,1726997363164,-302.54622906,0.0002424,2]
[338880667,1726997363184,-302.54622906,0.0002448,2]
[338880668,1726997363210,-380.0,0.00024658,2]
[338880669,1726997363230,-302.54622906,0.0002472,2]
[338880670,1726997363252,-302.54622906,0.0002496,2]
[338880671,1726997363273,-979.80230678,0.00025,30]
[338880672,1726997363295,-500.0,0.00025,30]
[338880673,1726997363316,-500.0,0.00025,30]
[338880674,1726997363338,-500.0,0.00025,30]
[338880675,1726997363364,-500.0,0.00025,30]
[338880676,1726997363389,-500.0,0.00025,30]
[338880677,1726997363410,-169.0,0.00025,2]
[338880678,1726997363576,-200.0,0.00025001,2]
[338880679,1726997363598,-574.6963256,0.000252,4]
[338880680,1726997363622,-717.98454935,0.00025251,2]
[338880681,1726997363643,-622.69523597,0.00025453,2]
[338880682,1726997363665,-1103.99999901,0.000258,2]
[338880700,1726997432150,-300.0,0.00027,2]
[338880702,1726997432161,-247.9050625,0.00027152,2]
[338880706,1726997432326,-37.17947911,0.00027152,2]
[338880722,1726997438495,-214.91545839,0.00027152,2]
[338880723,1726997438505,-55.48139656,0.00027465,2]
[338880724,1726997438518,-244.51860344,0.00027465,2]
[338880725,1726997438528,-7139.2745635,0.00027466,2]
[338880726,1726997438539,-2731.329442,0.00027657,2]
[338880727,1726997438549,-247.04,0.00027697,3]
[338880728,1726997438562,-300.0,0.000277,13]
[338880729,1726997438571,-29187.20202772,0.00027707,4]
[338880730,1726997439044,-2476.49678872,0.00027707,4]